Cogmind - Beta 15 *** ADVENTURER MODE // 2025.07.17 @ 05:57:02 Player: Nagash Result: Destroyed by B-75 Beast with Heavy Plasma Cannon Performance ------------- Evolutions (4) 2000 Regions Visited (8) 1600 Robots Destroyed (46) 230 Value Destroyed (1532) 1532 Prototype IDs (0) 0 Alien Tech Used (0) 0 Bonus (214) 214 TOTAL SCORE: 5576 Bonus ------- Pacifist 200 Follower Combat Kills 74 Friendly Fire -60 Cogmind --------- Core Integrity 0/850 Matter 300/300 Energy 100/100 System Corruption 0% Temperature Cool (12) Movement Core (700) Ox13 Location -6/Extension Parts ------- > --- POWER (2) -------- (None) > --- PROPULSION (4) --- (None) > --- UTILITY (6) ------ High-capacity Storage Unit Enhanced Optical Array Improved Terrain Scan Processor > --- WEAPON (3) ------- (None) > --- INVENTORY (20) --- Light Ion Engine Deuterium Engine Improved Deuterium Engine Flight Unit Flight Unit Small Storage Unit Transport Network Coupler Transmission Jammer System Restoration Module Peak State ------------ > --- POWER ------------ Fission Core Neutrino Core > --- PROPULSION ------- Light Treads Armored Treads Armored Treads Medium Treads > --- UTILITY ---------- High-capacity Storage Unit Advanced Visual Processing Unit Improved Terrain Scan Processor Recoil Stabilizer Focal Shield > --- WEAPON ----------- Assault Cannon Advanced Assault Cannon Chainsword > --- INVENTORY -------- Light Ion Engine Deuterium Engine Flight Unit Flight Unit Small Storage Unit Transport Network Coupler Transmission Jammer System Restoration Module [Rating: 49] Favorites ----------- Power Deuterium Engine Engine Deuterium Engine Power Core Fission Core Reactor Light Antimatter Reactor Propulsion Armored Treads Treads Armored Treads Leg Carbon-fiber Leg Wheel Wheel Flight Unit Flight Unit Utility Advanced Visual Processing Unit Device Structural Scanner Storage High-capacity Storage Unit Processor Advanced Visual Processing Unit Weapon Assault Cannon Energy Gun Small Laser Ballistic Gun Flak Gun Ballistic Cannon Assault Cannon Launcher Grenade Launcher Slashing Weapon Chainsword Build | -11 -10 -9 -8 -7 -7 -7 -6 -6 ------- Run | Yrd Mat Mat Mat Fac Low Low Fac Ext Slots Evolved 8 | . . 2 2 2 . . 2 . Power 1 | . . . . 1 . . . . Propulsion 2 | . . 1 1 . . . . . Utility 4 | . . 1 1 1 . . 1 . Weapon 1 | . . . . . . . 1 . Parts Attached 49 | 7 1 3 20 4 3 . 6 5 Power 10 | 2 . . 3 . 2 . 1 2 Engine 7 | 2 . . 3 . 1 . . 1 Core 2 | . . . . . 1 . 1 . Reactor 1 | . . . . . . . . 1 Propulsion 15 | 2 . 1 9 1 1 . . 1 Treads 5 | . . . 3 1 1 . . . Leg 1 | . . . . . . . . 1 Wheel 3 | 2 . 1 . . . . . . Hover . | . . . . . . . . . Flight 6 | . . . 6 . . . . . Utility 13 | 1 1 2 3 2 . . 4 . Device 6 | . 1 . 1 1 . . 3 . Storage 2 | 1 . 1 . . . . . . Processor 5 | . . 1 2 1 . . 1 . Hackware . | . . . . . . . . . Protection . | . . . . . . . . . Artifact . | . . . . . . . . . Weapon 11 | 2 . . 5 1 . . 1 2 Energy Gun 4 | 1 . . 2 . . . . 1 Energy Cannon . | . . . . . . . . . Ballistic Gun 2 | 1 . . . . . . . 1 Ballistic Cannon 3 | . . . 2 1 . . . . Launcher 1 | . . . 1 . . . . . Special Weapon . | . . . . . . . . . Impact Weapon . | . . . . . . . . . Slashing Weapon 1 | . . . . . . . 1 . Piercing Weapon . | . . . . . . . . . Special Melee Weapon . | . . . . . . . . . Unidentified Prototypes . | . . . . . . . . . Parts Lost 29 | . . 3 4 1 5 . 3 13 Power 6 | . . . 2 . 1 . 1 2 Propulsion 10 | . . 2 2 . 1 . 1 4 Utility 6 | . . . . 1 2 . . 3 Weapon 7 | . . 1 . . 1 . 1 4 Highest Loss Streak 6 | . . 3 2 1 3 . 2 6 To Critical Strikes . | . . . . . . . . . Average Backups 7 | . 4 7 6 6 7 8 8 8 Power 1 | . 1 1 . . . 1 1 2 Propulsion 1 | . 2 2 . 2 2 2 2 2 Utility 3 | . . 2 3 3 5 5 4 4 Weapon . | . 1 2 1 . . . . . Tool/Special . | . . . . . . . . . Unused Backups 5 | . . . 2 . . . . 3 Power . | . . . . . . . . . Propulsion 1 | . . . 1 . . . . . Utility 4 | . . . 1 . . . . 3 Weapon . | . . . . . . . . . Tool/Special . | . . . . . . . . . Average Slot Usage (%) 80 | . 97 93 71 88 93 84 77 70 Engine 8 | . 14 11 8 14 13 7 . 1 Core 2 | . . . . . . 7 8 5 Treads 12 | . . . 3 27 29 30 22 5 Wheel 4 | . 28 28 1 . . . . . Flight 3 | . . . 15 . . . . . Device 10 | . 11 11 10 13 9 . 10 12 Storage 7 | . 14 11 9 7 7 7 6 6 Processor 14 | . . 10 14 8 15 15 14 19 Energy Gun 3 | . 14 11 3 . . . . 2 Ballistic Gun 2 | . 14 9 . . . . . 4 Ballistic Cannon 4 | . . . 5 7 10 15 7 . Launcher 1 | . . . 1 7 3 . . . Slashing Weapon 1 | . . . . . . . 5 5 Peak Build Rating 49 | 6 7 10 20 31 35 35 49 49 Average Rating 27 | 3 6 9 15 26 30 35 40 44 On Entrance 20 | . 6 7 8 19 31 35 35 45 Naked Turns . | . . . . . . . . . Heaviest Build 80 | 12 13 48 54 69 74 74 80 75 Greatest Support 88 | 26 26 36 60 80 88 88 88 68 Greatest Overweight (x) 24 | . . 4 16 1 1 . . 24 Average Overweight (x) 1 | . . 1 1 . . . . 6 Largest Inventory Capacity 20 | 8 8 20 20 20 20 20 20 20 Average Capacity 16 | 7 8 19 9 19 20 20 20 20 Most Carried 10 | 1 8 9 10 8 8 8 9 9 Average Carried 7 | . 5 7 6 6 7 8 8 8 Final Capacity 20 | 8 8 20 8 20 20 20 20 20 Final Carried 9 | 1 8 9 6 8 8 8 8 9 Class Distribution -------------------- 56% | Mutant 23% | Assassin 13% | Skirmisher 5% | Scavenger-Mutant Dominant Class ---------------- Mutant | -10/Materials Mutant | -9/Materials Mutant | -8/Materials Mutant | -7/Factory Skirmisher | -7/Lower Caves Mutant | -7/Lower Caves Mutant | -6/Factory Assassin | -6/Extension Resources | -11 -10 -9 -8 -7 -7 -7 -6 -6 ----------- Run | Yrd Mat Mat Mat Fac Low Low Fac Ext Matter Collected 1292 | 253 27 36 259 . 455 . 91 171 Remotely . | . . . . . . . . . Salvage Created 1292 | . . 160 425 42 214 . 38 413 Parts 86 | . . 6 41 3 16 . 3 17 Haulers Intercepted . | . . . . . . . . . Recyclers Shooed . | . . . . . . . . . Parts Field Recycled . | . . . . . . . . . Retrieved Matter . | . . . . . . . . . Parts Self-Destructed 16 | . . . . . 16 . . . Prevented . | . . . . . . . . . Kills | -11 -10 -9 -8 -7 -7 -7 -6 -6 ------- Run | Yrd Mat Mat Mat Fac Low Low Fac Ext Combat Hostiles Destroyed 41 | . . 3 17 1 11 . 2 7 Melee 2 | . . . . . . . . 2 Guns 17 | . . 3 9 . . . . 5 Cannons 19 | . . . 8 1 8 . 2 . AOE 3 | . . . . . 3 . . . Classes Destroyed 8 | . . 3 4 . 1 . . . Worker 1 | . . . 1 . . . . . Tunneler 1 | . . . 1 . . . . . Operator 1 | . . . 1 . . . . . Watcher 2 | . . 1 . . . . . 1 Swarmer 17 | . . . 11 . 6 . . . Grunt 10 | . . 2 . . 4 . 2 2 Sentry 12 | . . 1 6 1 . . . 4 Hunter 2 | . . . . . 1 . . 1 Best Kill Streak 10 | . . 2 10 1 3 . 1 2 Combat Bots Only 9 | . . 2 9 1 3 . 1 2 Max Kills in Single Turn 2 | . . 1 2 1 2 . 1 1 Gunslinging 1 | . . . 1 . . . . . Exploded 2 | . . . . . 2 . . . Melee 1 | . . . . . . . . 1 Uniques/NPCs Destroyed . | . . . . . . . . . Combat | -11 -10 -9 -8 -7 -7 -7 -6 -6 -------- Run | Yrd Mat Mat Mat Fac Low Low Fac Ext Hostile Shots Fired 593 | . . 49 118 18 87 . 20 301 Missed 190 | . . 17 37 4 25 . 5 102 Hits 403 | . . 32 81 14 62 . 15 199 Projectile 403 | . . 32 81 14 62 . 15 199 Critical Strikes 11 | . . 1 4 . 3 . . 3 Damage Taken 4426 | . . 352 744 73 848 . 295 2114 Core 1306 | . . 91 247 9 84 . 31 844 Absorbed by Shields . | . . . . . . . . . Ignored by Resistances 1508 | . . 97 217 27 237 . 79 851 Core Remaining (%) 83 | 100 100 77 55 . . 86 . . Volleys Fired 138 | . . 13 41 3 37 . 21 23 Largest 2 | . . 2 2 1 2 . 1 2 Hottest 160 | . . 60 160 40 77 . 37 103 Shots Fired 173 | . . 24 50 3 42 . 21 33 Gun 75 | . . 24 20 . . . . 31 Cannon 94 | . . . 30 3 38 . 21 2 Launcher 4 | . . . . . 4 . . . Special . | . . . . . . . . . Kinetic 126 | . . 11 30 3 38 . 21 23 Thermal 43 | . . 13 20 . . . . 10 Explosive 4 | . . . . . 4 . . . Electromagnetic . | . . . . . . . . . Robot Hit Streak 21 | . . 11 21 5 5 . 16 18 Robot Miss Streak 3 | . . 1 3 . 2 . 1 3 Penetration Max . | . . . . . . . . . Secondary Targets 3 | . . 2 1 . . . . . Max Gunslinging Chain 1 | . . 1 1 . . . . . Shots Hit Robots 147 | . . 20 38 3 27 . 20 39 Core Hits 95 | . . 9 23 2 16 . 5 40 Critical Kills . | . . . . . . . . . Critical Parts Destroyed . | . . . . . . . . . Critical Strikes 11 | . . . 2 1 3 . 3 2 Burn 1 | . . . . . . . . 1 Blast 9 | . . . 2 1 3 . 3 . Sever 1 | . . . . . . . . 1 Melee Attacks 9 | . . . . . . . . 9 Impact . | . . . . . . . . . Slashing 9 | . . . . . . . . 9 Piercing . | . . . . . . . . . Sneak Attacks . | . . . . . . . . . Combat Hostiles . | . . . . . . . . . Follow-up Attacks . | . . . . . . . . . Damage Inflicted 3546 | . . 202 857 75 913 . 483 1016 Guns 1285 | . . 202 400 . . . . 683 Cannons 1794 | . . . 449 74 742 . 483 46 Explosions 171 | . . . . . 171 . . . Melee 275 | . . . . . . . . 275 Ramming 21 | . . . 8 1 . . . 12 Kinetic 2353 | . . 75 449 74 742 . 483 530 Thermal 726 | . . 127 400 . . . . 199 Explosive 171 | . . . . . 171 . . . Electromagnetic . | . . . . . . . . . Impact . | . . . . . . . . . Slashing 275 | . . . . . . . . 275 Piercing . | . . . . . . . . . Highest Corruption . | . . . . . . . . . Average Corruption . | . . . . . . . . . Corruption Purged . | . . . . . . . . . Corruption Blocked . | . . . . . . . . . Overload Shots . | . . . . . . . . . Overflow Damage 46 | . . . 7 . 21 . 14 4 Projectiles 42 | . . . 7 . 21 . 14 . Explosions . | . . . . . . . . . Melee 4 | . . . . . . . . 4 Knockbacks 21 | . . . 5 . 6 . 10 . Impact . | . . . . . . . . . Kinetic 18 | . . . 3 . 5 . 10 . Secondary 3 | . . . 2 . 1 . . . Self-Inflicted Damage 18 | . . . 4 . 14 . . . Shots 1 | . . . . . 1 . . . Rammed 9 | . . . 3 1 . . . 5 Targets Rammed 14 | . . . 3 1 . . . 10 Kicked 5 | . . . . . . . . 5 Crushed . | . . . . . . . . . Highest Temperature 407 | . . 70 407 16 203 . 21 196 Average Temperature 88 | . . 27 164 13 79 . 11 70 Received Heat Transfer 1645 | . . 183 270 24 414 . 135 619 Effects 1 | . . . 1 . . . . . Interference 1 | . . . 1 . . . . . Siege Activations . | . . . . . . . . . Martial Activations . | . . . . . . . . . Shielding Activations . | . . . . . . . . . Robots Disrupted . | . . . . . . . . . Combat Hostiles . | . . . . . . . . . Robots Corrupted . | . . . . . . . . . Combat Hostiles . | . . . . . . . . . Parts Fried . | . . . . . . . . . Impact Corruptions . | . . . . . . . . . Robots Melted . | . . . . . . . . . Combat Hostiles . | . . . . . . . . . Parts Melted 4 | . . . 2 . . . . 2 Heat Transferred 1725 | . . 275 900 . . . . 550 Parts Sabotaged . | . . . . . . . . . Parts Stolen . | . . . . . . . . . Parts Stripped . | . . . . . . . . . Power Chain Reactions . | . . . . . . . . . Alert | -11 -10 -9 -8 -7 -7 -7 -6 -6 ------- Run | Yrd Mat Mat Mat Fac Low Low Fac Ext Maximum Alert Level . | . . . . . . . . . Low Security (%) 100 | 100 100 100 100 100 . . 100 100 Level 1 . | . . . . . . . . . Level 2 . | . . . . . . . . . Level 3 . | . . . . . . . . . Level 4 . | . . . . . . . . . Level 5 . | . . . . . . . . . High Security . | . . . . . . . . . Max Security . | . . . . . . . . . Peak Influence 190 | . 30 60 190 20 . . 20 94 Initial 3 | . . . 3 . . . . . Average 23 | . 2 19 67 1 . . 1 8 Influence Increases 1377 | . 30 117 510 30 260 . 41 389 Destroy 0b10 Robot/C 860 | . . 60 340 20 220 . 40 180 Destroy 0b10 Robot/NC 25 | . . 5 15 . . . . 5 Destroy Leader 184 | . . 22 90 10 40 . . 22 Allied During Kill 5 | . . . . . . . . 5 Successful Hack 12 | . . . . . . . . 12 Destroy Structure 6 | . . . 5 . . . 1 . Partial Spotted 15 | . . . 15 . . . . . Lose Combat Pursuer 270 | . 30 30 45 . . . . 165 Influence Decreases 1377 | . 30 107 520 30 260 . 41 389 Entered New Map 7 | . . . 7 . . . . . Time Decay 1150 | . 30 97 473 30 230 . 31 259 Lost Part 145 | . . 10 40 . 30 . 10 55 Lost Ally 75 | . . . . . . . . 75 Squads Dispatched 4 | . . . 3 . . . . 1 Investigation . | . . . . . . . . . Extermination . | . . . . . . . . . Reinforcement 1 | . . . . . . . . 1 Assault . | . . . . . . . . . Garrison 3 | . . . 3 . . . . . Intercept . | . . . . . . . . . Searches Triggered . | . . . . . . . . . Construction Impeded . | . . . . . . . . . Haulers Reinforced . | . . . . . . . . . Active Scanning Responses . | . . . . . . . . . Cargo Convoy Interrupts . | . . . . . . . . . Stealth | -11 -10 -9 -8 -7 -7 -7 -6 -6 --------- Run | Yrd Mat Mat Mat Fac Low Low Fac Ext Distress Signals 4 | . . 3 1 . . . . . Communications Jammed . | . . . . . . . . . Distress Signals . | . . . . . . . . . Times Spotted 73 | . 2 11 26 1 11 . 3 19 Peak Tracking Total 6 | . 2 4 6 1 4 . 2 6 Tactical Retreats 13 | . 1 1 2 . . . . 9 Traps | -11 -10 -9 -8 -7 -7 -7 -6 -6 ------- Run | Yrd Mat Mat Mat Fac Low Low Fac Ext Traps Triggered 3 | . . . 1 . . . 2 . Indirectly . | . . . . . . . . . Trap Hack Attempts . | . . . . . . . . . Triggered . | . . . . . . . . . Disarmed . | . . . . . . . . . Reprogrammed . | . . . . . . . . . Reused . | . . . . . . . . . Traps Extracted . | . . . . . . . . . Installed . | . . . . . . . . . Triggered . | . . . . . . . . . Machines | -11 -10 -9 -8 -7 -7 -7 -6 -6 ---------- Run | Yrd Mat Mat Mat Fac Low Low Fac Ext Machines Disabled . | . . . . . . . . . Max in Single Turn . | . . . . . . . . . Machines Repaired . | . . . . . . . . . Machines Dismantled . | . . . . . . . . . Machines Sabotaged . | . . . . . . . . . Overloaded Fab Kills . | . . . . . . . . . Hacking | -11 -10 -9 -8 -7 -7 -7 -6 -6 --------- Run | Yrd Mat Mat Mat Fac Low Low Fac Ext Machines Accessed 3 | . . . . . . . . 3 Terminals 3 | . . . . . . . . 3 Fabricators . | . . . . . . . . . Repair Stations . | . . . . . . . . . Recycling Units . | . . . . . . . . . Scanalyzers . | . . . . . . . . . Garrison Access . | . . . . . . . . . Total Hacks 5 | . . . . . . . . 5 Successful 3 | . . . . . . . . 3 Failed 2 | . . . . . . . . 2 Catastrophic . | . . . . . . . . . Database Lockouts . | . . . . . . . . . Manual . | . . . . . . . . . Terminals 5 | . . . . . . . . 5 Fabricators . | . . . . . . . . . Repair Stations . | . . . . . . . . . Recycling Units . | . . . . . . . . . Scanalyzers . | . . . . . . . . . Garrison Access . | . . . . . . . . . Terminal Hacks 3 | . . . . . . . . 3 Open Door 3 | . . . . . . . . 3 Fabricator Hacks . | . . . . . . . . . Repair Station Hacks . | . . . . . . . . . Recycling Unit Hacks . | . . . . . . . . . Scanalyzer . | . . . . . . . . . Garrison Access Hacks . | . . . . . . . . . Unauthorized Hacks . | . . . . . . . . . Terminals . | . . . . . . . . . Fabricators . | . . . . . . . . . Repair Stations . | . . . . . . . . . Recycling Units . | . . . . . . . . . Scanalyzers . | . . . . . . . . . Garrison Access . | . . . . . . . . . Data Cores Recovered 1 | . . . 1 . . . . . Used . | . . . . . . . . . Hacking Detections 1 | . . . . . . . . 1 Full Trace Events . | . . . . . . . . . Feedback Events . | . . . . . . . . . Feedback Blocked . | . . . . . . . . . Robot Schematics Acquired . | . . . . . . . . . Robots Built . | . . . . . . . . . Authchips . | . . . . . . . . . Time . | . . . . . . . . . Total Robot Build Rating . | . . . . . . . . . Part Schematics Acquired . | . . . . . . . . . Parts Built . | . . . . . . . . . Authchips . | . . . . . . . . . Time . | . . . . . . . . . Total Part Build Rating . | . . . . . . . . . Parts Repaired . | . . . . . . . . . Time . | . . . . . . . . . Parts Recycled . | . . . . . . . . . Recycled Matter . | . . . . . . . . . Retrieved Matter . | . . . . . . . . . Retrieved Components . | . . . . . . . . . Parts Scanalyzed . | . . . . . . . . . Part Schematics Acquired . | . . . . . . . . . Parts Damaged . | . . . . . . . . . Bothacking | -11 -10 -9 -8 -7 -7 -7 -6 -6 ------------ Run | Yrd Mat Mat Mat Fac Low Low Fac Ext Used RIF Installer . | . . . . . . . . . Robots Hacked . | . . . . . . . . . Non-combat . | . . . . . . . . . Combat . | . . . . . . . . . Robot Hacks Applied . | . . . . . . . . . Relay Couplers Released . | . . . . . . . . . Fabnet Peak Effective % . | . . . . . . . . . Robots Rewired . | . . . . . . . . . Allies Hacked . | . . . . . . . . . Hacks Repelled . | . . . . . . . . . Allies | -11 -10 -9 -8 -7 -7 -7 -6 -6 -------- Run | Yrd Mat Mat Mat Fac Low Low Fac Ext Total Allies 6 | . . . . . . . . 6 Largest Group 4 | . . . . . . . . 4 Highest-Rated Group 106 | . . . . . . . . 106 Highest-Rated Ally 31 | . . . . . . . . 31 Total Orders . | . . . . . . . . . Ally Attacks 31 | . . . . . . . . 31 Total Damage 530 | . . . . . . . . 530 Kills 2 | . . . . . . . . 2 Allies Corrupted . | . . . . . . . . . Allies Melted . | . . . . . . . . . Intel | -11 -10 -9 -8 -7 -7 -7 -6 -6 ------- Run | Yrd Mat Mat Mat Fac Low Low Fac Ext Active Infowar (turns) 4724 | . 278 287 1067 355 1005 80 406 1246 Optics 4443 | . . 284 1067 355 1005 80 406 1246 Terrain 1917 | . . . . 181 539 . 46 1151 Structural 1729 | . 278 287 1067 97 . . . . Seismic 1263 | . . . 122 355 786 . . . Robot Analysis Total . | . . . . . . . . . Derelict Logs Recovered 1 | . . . . . 1 . . . Drone Launches . | . . . . . . . . . Drone Recoveries . | . . . . . . . . . Exploration | -11 -10 -9 -8 -7 -7 -7 -6 -6 ------------- Run | Yrd Mat Mat Mat Fac Low Low Fac Ext Turns Passed 4840 | 54 340 287 1067 355 1005 80 406 1246 Spaces Moved 2324 | 41 291 204 595 177 526 49 211 230 Core 61 | 1 . . 1 . . . . 59 Treads 1207 | . . . 75 177 526 49 211 169 Legs 2 | . . . . . . . . 2 Wheels 607 | 40 291 204 72 . . . . . Hover . | . . . . . . . . . Flight 447 | . . . 447 . . . . . Fastest Speed 50 | 50 90 101 111 163 165 165 165 166 Average Speed 178 | 89 90 106 152 181 171 165 165 468 Slowest Speed 1250 | 100 90 140 850 243 246 165 166 1250 Overloaded Moves . | . . . . . . . . . Propulsion Burnouts . | . . . . . . . . . Robots Hopped . | . . . . . . . . . Potential Cave-ins . | . . . . . . . . . Cave-ins Triggered . | . . . . . . . . . Exploration Rate (%) 30 | 4 60 25 56 7 69 12 8 31 Regions Visited 8 Branch Regions 3 Pre-discovered Areas . | . . . . . . . . . Known Exits Taken 1 | . . . . . 1 . . . Unknown Exits Taken 7 | 1 1 1 1 1 . 1 1 . Scrap Searched . | . . . . . . . . . Spaces Dug . | . . . . . . . . . Terrain Destroyed 25 | . . . 5 . 19 . 1 . Melee . | . . . . . . . . . Projectile 12 | . . . 5 . 6 . 1 . AOE 13 | . . . . . 13 . . . Terrain Rammed . | . . . . . . . . . Walls Destroyed . | . . . . . . . . . Machines Disabled . | . . . . . . . . . Actions | -11 -10 -9 -8 -7 -7 -7 -6 -6 --------- Run | Yrd Mat Mat Mat Fac Low Low Fac Ext Total 2764 | 54 368 251 690 205 587 48 245 316 Wait 200 | 7 70 29 10 17 21 . 7 39 Move 2316 | 40 290 203 594 176 525 48 210 230 Hop . | . . . . . . . . . Pick Up 18 | . 7 3 6 2 . . . . Fast Attach 28 | 6 1 . 8 3 2 . 4 4 Attach 12 | . . 2 7 1 1 . 1 . Detach 1 | . . . 1 . . . . . Swap 15 | 1 . 1 8 2 1 . 1 1 Drop 13 | . . . 12 . . . 1 . Fire 138 | . . 13 41 3 37 . 21 23 Melee 9 | . . . . . . . . 9 Ram 8 | . . . 3 . . . . 5 Kick 5 | . . . . . . . . 5 Crush 1 | . . . . 1 . . . . Escape Stasis . | . . . . . . . . . Rewire . | . . . . . . . . . Trap . | . . . . . . . . . Miscellaneous . | . . . . . . . . . Route ------- -11/Scrapyard -10/Materials (discovered 3 exits: [*Mat x2] / [*Min]) -9/Materials -8/Materials -7/Factory -7/Lower Caves -7/Lower Caves -6/Factory -6/Extension History --------- Turn | Location | Event 24 | -11/Scrapyard | Discovered new exit (range 15) 55 | -11/Scrapyard | Entered Materials 56 | -10/Materials | Met a group of wandering Federalists 124 | -10/Materials | Discovered new exit (range 11) 307 | -10/Materials | Discovered new exit (range 15) 309 | -10/Materials | Build established: Mutant 376 | -10/Materials | Discovered new exit (range 16) 395 | -10/Materials | Entered another Materials area 395 | -9/Materials | Evolved 2 slots: Propulsion x1, Utility x1 657 | -9/Materials | Discovered new exit (range 17) 670 | -9/Materials | Lost 3 parts (2n1w) 682 | -9/Materials | Entered another Materials area 682 | -8/Materials | Evolved 2 slots: Propulsion x1, Utility x1 857 | -8/Materials | Destroyed 9 combat bots 1741 | -8/Materials | Discovered new exit (range 6) 1749 | -8/Materials | Entered Factory 1749 | -7/Factory | Evolved 2 slots: Power x1, Utility x1 2040 | -7/Factory | Discovered new exit (range 5) 2104 | -7/Factory | Entered Lower Caves 2175 | -7/Lower Caves | Identified exit to Lower Caves 2333 | -7/Lower Caves | Build established: Skirmisher 2685 | -7/Lower Caves | Lost 3 parts (1p1u1w) 2937 | -7/Lower Caves | Build established: Mutant 3109 | -7/Lower Caves | Entered another Lower Caves area 3139 | -7/Lower Caves | Spotted B-75 Beast 3159 | -7/Lower Caves | Discovered new exit (range 18) 3189 | -7/Lower Caves | Entered Factory 3189 | -6/Factory | Evolved 2 slots: Utility x1, Weapon x1 3571 | -6/Factory | Discovered new exit (range 16) 3595 | -6/Factory | Entered Extension 3722 | -6/Extension | Rescued a captive Derelict 3732 | -6/Extension | Rescued a captive Derelict 3805 | -6/Extension | Rescued a captive Derelict 3806 | -6/Extension | Rescued a captive Derelict 3852 | -6/Extension | Build established: Assassin 4023 | -6/Extension | Lost 4 allies 4043 | -6/Extension | Rescued a captive Derelict 4044 | -6/Extension | Rescued a captive Derelict 4662 | -6/Extension | Spotted B-75 Beast 4776 | -6/Extension | Core integrity fell below 50% 4800 | -6/Extension | Lost 6 parts (1p1n2u2w) 4806 | -6/Extension | Core integrity fell below 20% 4841 | -6/Extension | Destroyed by B-75 Beast with Heavy Plasma Cannon Last Messages --------------- 04758_ Knocked back. 04762_ Focal Shield destroyed. 04762_ Kicked B-75 Beast. 04764_ Kicked B-75 Beast out of the way. 04765_ Knocked back. 04769_ Carbon-fiber Leg destroyed. 04769_ Slammed into B-75 Beast. 04769_ Destabilizing: Core damaged (-8). 04775_ Knocked back. 04783_ Slammed into B-75 Beast. 04791_ Knocked back. 04797_ U-05 Engineer builds a Wall. 04797_ Slammed into B-75 Beast. 04798_ Knocked back. 04799_ R-10 Processor collects Welding Torch. 04804_ U-05 Engineer builds a Wall. 04804_ Slammed into B-75 Beast. 04816_ Adv. Visual Processing Unit destroyed. 04816_ Knocked back. 04833_ U-05 Engineer builds a Wall. Map ----- +----------------------------------------------------+ | | | | | | | | | | | | | | | ####################################?#???????????? | | #####################################????????????? | | #######################################??????????? | | ######################################?#?????????? | | [##### #####################??????????? | | [ !##### #####################??????????? | | ##########%#### T#################### ???????? | | ?#########%##### ###################### ????????? | | ########## % % ################### ???????? | | ##########% % ###################? ""?????? | | ########## ################### ?""?????? | | ########## ???????? | | ################### ########## "? ????? | | ################### ########## "??????? | | ################### ########## "??????? | | ################### % ########## ????? | | ## + ########## ? ????? | | ## ########## ########## ? ????? | | ## ##############@########## ??T????? | | ######################### ########## #?#???? | | ######################### ########## ###???? | | ######################### ;######### ###? ###????? | | ########################;%########## #### T#?????? | | ########################BB;######### ####"##?????? | | ##?#####################BB########## #### ####???? | | #######################=%%#%######## ###?#?#?????? | | #########################%########## ####?#??????? | | ####?####################%########## ?######?????? | | #######################%# ########## #####??#????? | | #?##################### # #########? ####?###????? | | ??##################### #u########## #?###?#?????? | | ####?#################""" ### ## ### ######?#????? | | ?###?########?########" "%""? ""??"####?#????? | | ?#???#################" % " "?##????????? | | ????#?##?############## %% #?#?#?????? | | ??????#######?######### ? ? ? ##????????? | | ?????????#??##?######## ? ??#???????? | | ???????????? ? ? ? ??????????? | | ?????????? ?? ??? ?? ?? ????????? | | ??????????? ?? ? ? ?? ? ???????????? | | ?????????????? ? ? ? ??? ? ?????????? | | ??????????????? ? ?? ? ? ?? ??????????????? | | ?????????????#?#??#?### ???? ???????????? | +----------------------------------------------------+ Best States ------------- Heat Dissipation 37 Energy Generation 34 Energy Capacity 525 Matter Stores 300 Matter Capacity 300 Sight Range 22 Terrain Scan Range 20 Terrain Scan Density 110 Resistance: KI 40 Resistance: TH 20 Resistance: EX 20 Resistance: EM 20 Resistance: I 20 Resistance: S 20 Resistance: P 20 Evasion (%) 50 Recoil Reduction 8 Offensive Hacking 10 Item Schematics ----------------- None Robot Schematics ------------------ None Fabricated ------------ Nothing Repaired ---------- Nothing Alien Tech Used ----------------- None Achievements -------------- Omniscient Cartographer Challenges ------------ None Game ------ Seed FieldEnergyFirepult Manual? 0 Play Time 00:59:45 Cumulative 77.7 hours Start 2025.07.17 @ 04:18:51 End 2025.07.17 @ 05:57:02 Sessions 1 Manual Loads 0 Difficulty Adventurer Special Mode None Game No. 61 Rogue 32 Adventurer 29 Explorer 0 Win Type - Total 0 Types 0/0/0/0/0/0/0/0/0/0 Lore% 9 Gallery% 30 Achievement% 18 Wizard Run 0 Options --------- Layout 1 ASCII 0 Keyboard 0 Movement Numpad Keybinds 0 Fullscreen 1 Font 48/Smallcaps Map View 50x35 Zoom Use 0% Tactical HUD 1 Map Filters NONE Filters NONE Steam 1 RUN: 3a071081-6225-4a32-9c4f-fbe2f0ddbf26